Cogmind - Beta 13 @@@ ROGUE MODE // 2024.08.05 @ 22:24:31 // Winter2019/RPGLIKE Player: badjay Result: Destroyed by Y-45 Defender with Heavy Assault Rifle Performance ------------- Evolutions (1) 500 Regions Visited (3) 600 Robots Destroyed (41) 205 Value Destroyed (1127) 1127 Prototype IDs (12) 240 Alien Tech Used (0) 0 Bonus (57) 57 TOTAL SCORE: 2729 Bonus ------- High Alert Combat Kills 67 Friendly Fire -10 Cogmind --------- Core Integrity 0/600 Matter 190/300 Energy 265/265 System Corruption 0% Temperature Cool (9) Movement Flying (26) Location -9/Mines Parts ------- > --- POWER (1) -------- Improved Ion Engine > --- PROPULSION (4) --- VTOL Module VTOL Module VTOL Module VTOL Module > --- UTILITY (5) ------ Sensor Array > --- WEAPON (2) ------- Rocket Launcher Mining Claw > --- INVENTORY (1) ---- Light Ion Engine Peak State ------------ > --- POWER ------------ Improved Ion Engine > --- PROPULSION ------- VTOL Module VTOL Module VTOL Module VTOL Module > --- UTILITY ---------- Sensor Array > --- WEAPON ----------- Rocket Launcher Mining Claw > --- INVENTORY -------- Light Ion Engine [Rating: 14] Favorites ----------- Power Improved Ion Engine Engine Improved Ion Engine Propulsion VTOL Module Flight Unit VTOL Module Utility Sensor Array Device Sensor Array Weapon Grenade Launcher Launcher Grenade Launcher Slashing Weapon Mining Claw Build | -11 -10 -9 -9 ------- Run | Yrd Mat Mat Min Slots Evolved 8 | . . 6 2 Power . | . . . . Propulsion 3 | . . 3 . Utility 4 | . . 2 2 Weapon 1 | . . 1 . Parts Attached 12 | . 3 7 2 Power 2 | . . 2 . Engine 2 | . . 2 . Core . | . . . . Reactor . | . . . . Propulsion 5 | . 1 4 . Treads . | . . . . Leg . | . . . . Wheel . | . . . . Hover . | . . . . Flight 5 | . 1 4 . Utility 1 | . 1 . . Device 1 | . 1 . . Storage . | . . . . Processor . | . . . . Hackware . | . . . . Protection . | . . . . Artifact . | . . . . Weapon 4 | . 1 1 2 Energy Gun . | . . . . Energy Cannon . | . . . . Ballistic Gun . | . . . . Ballistic Cannon . | . . . . Launcher 3 | . 1 . 2 Special Weapon . | . . . . Impact Weapon . | . . . . Slashing Weapon 1 | . . 1 . Piercing Weapon . | . . . . Special Melee Weapon . | . . . . Unidentified Prototypes . | . . . . Parts Lost . | . . . . Power . | . . . . Propulsion . | . . . . Utility . | . . . . Weapon . | . . . . Highest Loss Streak . | . . . . To Critical Strikes . | . . . . Average Slot Usage (%) 77 | . 68 82 75 Engine 3 | . . 4 9 Flight 36 | . 19 46 37 Device 15 | . 23 13 9 Launcher 16 | . 25 13 9 Slashing Weapon 4 | . . 4 9 Naked Turns 5 | . 5 . . Heaviest Build 14 | . 4 13 14 Greatest Support 21 | 3 9 21 21 Greatest Overweight (x) . | . . . . Average Overweight (x) . | . . . . Largest Inventory Capacity 1 | . . 1 1 Average Capacity . | . . . 1 Most Carried 1 | . . 1 1 Average Carried . | . . . 1 Final Capacity 1 | . . 1 1 Final Carried 1 | . . 1 1 Class Distribution -------------------- 51% | Hacker-Sprinter 48% | Hacker-Mutant Dominant Class ---------------- Hacker-Mutant | -10/Materials Hacker-Sprinter | -9/Materials Hacker-Sprinter | -9/Mines Resources | -11 -10 -9 -9 ----------- Run | Yrd Mat Mat Min Matter Collected 791 | 85 23 632 51 Remotely . | . . . . Salvage Created 769 | . 38 599 132 Parts 75 | . 16 39 20 Haulers Intercepted 2 | . . 2 . Recyclers Shooed . | . . . . Parts Field Recycled . | . . . . Retrieved Matter . | . . . . Parts Self-Destructed . | . . . . Prevented . | . . . . Kills | -11 -10 -9 -9 ------- Run | Yrd Mat Mat Min Combat Hostiles Destroyed 38 | . 11 18 9 Melee 5 | . . 4 1 AOE 33 | . 11 14 8 Classes Destroyed 6 | . 3 3 . Hauler 2 | . . 2 . Watcher 1 | . 1 . . Swarmer 18 | . 9 6 3 Grunt 11 | . 2 4 5 Duelist 1 | . . 1 . Sentry 8 | . . 7 1 Best Kill Streak 7 | . 7 4 6 Combat Bots Only 6 | . 6 4 6 Max Kills in Single Turn 4 | . 4 3 3 Gunslinging . | . . . . Exploded 4 | . 4 3 3 Melee 1 | . . 1 1 Uniques/NPCs Destroyed . | . . . . Combat | -11 -10 -9 -9 -------- Run | Yrd Mat Mat Min Hostile Shots Fired 114 | . 26 61 27 Missed 50 | . 14 20 16 Damage Taken 904 | . 122 605 177 Core 781 | . 114 504 163 Absorbed by Shields . | . . . . Redirected to Core 417 | . 24 345 48 Core Remaining (%) 94 | 100 89 . . Volleys Fired 57 | . 13 31 13 Largest 1 | . 1 1 1 Hottest 33 | . 30 30 33 Shots Fired 57 | . 13 31 13 Gun . | . . . . Cannon . | . . . . Launcher 57 | . 13 31 13 Special . | . . . . Kinetic . | . . . . Thermal . | . . . . Explosive 57 | . 13 31 13 Electromagnetic . | . . . . Robot Hit Streak 13 | . 2 13 3 Robot Miss Streak 3 | . 2 3 3 Penetration Max . | . . . . Secondary Targets . | . . . . Shots Hit Robots 44 | . 4 32 8 Core Hits 68 | . 16 33 19 Critical Kills . | . . . . Critical Parts Destroyed . | . . . . Critical Strikes . | . . . . Melee Attacks 21 | . . 17 4 Impact . | . . . . Slashing 21 | . . 17 4 Piercing . | . . . . Sneak Attacks 2 | . . 2 . Combat Hostiles 1 | . . 1 . Follow-up Attacks . | . . . . Damage Inflicted 2837 | . 753 1316 768 Guns . | . . . . Cannons . | . . . . Explosions 2424 | . 753 989 682 Melee 413 | . . 327 86 Ramming . | . . . . Kinetic . | . . . . Thermal 158 | . . . 158 Explosive 2266 | . 753 989 524 Electromagnetic . | . . . . Impact . | . . . . Slashing 413 | . . 327 86 Piercing . | . . . . Highest Corruption . | . . . . Average Corruption . | . . . . Corruption Purged . | . . . . Corruption Blocked . | . . . . Overload Shots . | . . . . Overflow Damage 65 | . 16 38 11 Projectiles . | . . . . Explosions 65 | . 16 38 11 Melee . | . . . . Knockbacks . | . . . . Impact . | . . . . Kinetic . | . . . . Secondary . | . . . . Self-Inflicted Damage 59 | . 27 14 18 Shots 4 | . 2 1 1 Rammed . | . . . . Targets Rammed . | . . . . Kicked . | . . . . Crushed . | . . . . Highest Temperature 22 | . 6 18 22 Average Temperature 10 | . 5 9 12 Received Heat Transfer 285 | . . 231 54 Siege Activations . | . . . . Robots Corrupted . | . . . . Combat Hostiles . | . . . . Parts Fried . | . . . . Impact Corruptions . | . . . . Robots Melted . | . . . . Combat Hostiles . | . . . . Parts Melted . | . . . . Heat Transferred 200 | . . . 200 Parts Sabotaged . | . . . . Parts Stolen . | . . . . Parts Stripped . | . . . . Power Chain Reactions . | . . . . Alert | -11 -10 -9 -9 ------- Run | Yrd Mat Mat Min Peak Influence 605 | . 359 605 519 Initial 94 | . . 94 13 Average 248 | . 189 285 252 Maximum Alert Level 2 | . 1 2 2 Low Security (%) 44 | 100 39 43 50 Level 1 31 | . 60 25 4 Level 2 24 | . . 30 45 Level 3 . | . . . . Level 4 . | . . . . Level 5 . | . . . . High Security . | . . . . Max Security . | . . . . Squads Dispatched 3 | . . 3 . Investigation 1 | . . 1 . Extermination . | . . . . Reinforcement 2 | . . 2 . Assault . | . . . . Garrison . | . . . . Intercept . | . . . . Searches Triggered . | . . . . Construction Impeded 1 | . . 1 . Haulers Reinforced . | . . . . Active Scanning Responses . | . . . . Cargo Convoy Interrupts . | . . . . Stealth | -11 -10 -9 -9 --------- Run | Yrd Mat Mat Min Distress Signals 3 | . 2 1 . Communications Jammed . | . . . . Distress Signals . | . . . . Times Spotted 40 | . 15 18 7 Peak Tracking Total 7 | . 7 3 3 Tactical Retreats . | . . . . Traps | -11 -10 -9 -9 ------- Run | Yrd Mat Mat Min Traps Triggered . | . . . . Indirectly . | . . . . Trap Hack Attempts . | . . . . Triggered . | . . . . Disarmed . | . . . . Reprogrammed . | . . . . Reused . | . . . . Traps Extracted . | . . . . Installed . | . . . . Triggered . | . . . . Machines | -11 -10 -9 -9 ---------- Run | Yrd Mat Mat Min Machines Disabled 14 | . . . 14 Max in Single Turn 12 | . . . 12 Machines Repaired . | . . . . Machines Dismantled . | . . . . Machines Sabotaged . | . . . . Overloaded Fab Kills . | . . . . Hacking | -11 -10 -9 -9 --------- Run | Yrd Mat Mat Min Machines Accessed 17 | . 7 10 . Terminals 16 | . 6 10 . Fabricators . | . . . . Repair Stations . | . . . . Recycling Units 1 | . 1 . . Scanalyzers . | . . . . Garrison Access . | . . . . Total Hacks 93 | . 41 52 . Successful 65 | . 29 36 . Failed 27 | . 11 16 . Catastrophic . | . . . . Database Lockouts 1 | . 1 . . Manual 70 | . 35 35 . Terminals 89 | . 37 52 . Fabricators . | . . . . Repair Stations . | . . . . Recycling Units 4 | . 4 . . Scanalyzers . | . . . . Garrison Access . | . . . . Terminal Hacks 48 | . 19 29 . Part Schematic 4 | . 2 2 . Robot Analysis 4 | . 3 1 . Prototype ID Bank 11 | . 5 6 . Level Access Points 2 | . 1 1 . Branch Access Points 3 | . 1 2 . Terminal Index 2 | . 1 1 . Alert Level 7 | . 1 6 . Unreport Threat 6 | . 1 5 . Reinforcement Status 1 | . . 1 . Hauler Manifests 1 | . . 1 . Registered Components 2 | . 1 1 . Registered Prototypes 2 | . 1 1 . Zone Layout 3 | . 2 1 . Fabricator Hacks . | . . . . Repair Station Hacks . | . . . . Recycling Unit Hacks 1 | . 1 . . Process 1 | . 1 . . Scanalyzer . | . . . . Garrison Access Hacks . | . . . . Unauthorized Hacks 16 | . 9 7 . Terminals 13 | . 6 7 . Track 2 | . 1 1 . Assimilate 2 | . 1 1 . Botnet 6 | . 3 3 . Disrupt 1 | . . 1 . Operators 2 | . 1 1 . Fabricators . | . . . . Repair Stations . | . . . . Recycling Units 3 | . 3 . . Monitor 1 | . 1 . . Reject 1 | . 1 . . Mask 1 | . 1 . . Scanalyzers . | . . . . Garrison Access . | . . . . Data Cores Recovered . | . . . . Used . | . . . . Hacking Detections 14 | . 4 10 . Full Trace Events 1 | . . 1 . Feedback Events . | . . . . Feedback Blocked . | . . . . Robot Schematics Acquired . | . . . . Robots Built . | . . . . Authchips . | . . . . Time . | . . . . Total Robot Build Rating . | . . . . Part Schematics Acquired 4 | . 2 2 . Parts Built . | . . . . Authchips . | . . . . Time . | . . . . Total Part Build Rating . | . . . . Parts Repaired . | . . . . Time . | . . . . Parts Recycled . | . . . . Recycled Matter 8 | . 8 . . Retrieved Matter . | . . . . Retrieved Components . | . . . . Parts Scanalyzed . | . . . . Part Schematics Acquired . | . . . . Parts Damaged . | . . . . Bothacking | -11 -10 -9 -9 ------------ Run | Yrd Mat Mat Min Used RIF Installer . | . . . . Robots Hacked . | . . . . Non-combat . | . . . . Combat . | . . . . Robot Hacks Applied . | . . . . Relay Couplers Released . | . . . . Fabnet Peak Effective % . | . . . . Robots Rewired . | . . . . Allies Hacked . | . . . . Hacks Repelled . | . . . . Allies | -11 -10 -9 -9 -------- Run | Yrd Mat Mat Min Total Allies 2 | . 1 1 . Largest Group 2 | . 1 2 . Highest-Rated Group 20 | . 10 20 . Highest-Rated Ally 10 | . 10 10 . Total Orders . | . . . . Ally Attacks . | . . . . Total Damage . | . . . . Kills . | . . . . Allies Corrupted . | . . . . Allies Melted . | . . . . Intel | -11 -10 -9 -9 ------- Run | Yrd Mat Mat Min Robot Analysis Total 4 | . 3 1 . Derelict Logs Recovered 1 | . . . 1 Drone Launches . | . . . . Drone Recoveries . | . . . . Exploration | -11 -10 -9 -9 ------------- Run | Yrd Mat Mat Min Turns Passed 799 | 10 232 415 142 Spaces Moved 1612 | 19 447 807 339 Core 98 | 19 79 . . Treads . | . . . . Legs . | . . . . Wheels . | . . . . Hover . | . . . . Flight 1514 | . 368 807 339 Fastest Speed 26 | 50 40 26 26 Average Speed 33 | 50 41 31 26 Slowest Speed 50 | 50 50 40 26 Overloaded Moves . | . . . . Propulsion Burnouts . | . . . . Robots Hopped 5 | . 2 3 . Cave-ins Triggered . | . . . . Exploration Rate (%) 56 | 3 82 71 70 Regions Visited 3 Branch Regions 1 Pre-discovered Areas . | . . . . Known Exits Taken 2 | . 1 1 . Unknown Exits Taken 1 | 1 . . . Scrap Searched 1 | . . . 1 Spaces Dug 2 | . . 2 . Terrain Destroyed 351 | . 78 161 112 Melee 2 | . . 2 . Projectile . | . . . . AOE 349 | . 78 159 112 Terrain Rammed . | . . . . Walls Destroyed . | . . . . Machines Disabled . | . . . . Actions | -11 -10 -9 -9 --------- Run | Yrd Mat Mat Min Total 1764 | 18 475 899 372 Wait 58 | . 13 35 10 Move 1600 | 18 442 801 339 Hop 4 | . 2 2 . Pick Up . | . . . . Fast Attach 10 | . 3 5 2 Attach . | . . . . Detach . | . . . . Swap 2 | . . 2 . Drop 3 | . . 1 2 Fire 57 | . 13 31 13 Melee 21 | . . 17 4 Ram . | . . . . Kick . | . . . . Crush . | . . . . Escape Stasis . | . . . . Rewire . | . . . . Trap . | . . . . Miscellaneous 9 | . 2 5 2 Route ------- -11/Scrapyard -10/Materials (discovered 4 exits: *Mat x3 / *Min) -9/Materials (discovered 4 exits: *Mat x3 / *Min) -9/Mines History --------- Turn | Location | Event 4 | -11/Scrapyard | Discovered new exit (range 13) 11 | -11/Scrapyard | Entered Materials 35 | -10/Materials | Identified exit to Mines 104 | -10/Materials | Discovered new exit (range 5) 142 | -10/Materials | Identified exit to Materials 227 | -10/Materials | Central database locked down 243 | -10/Materials | Entered another Materials area 243 | -9/Materials | Accompanied by 1 ally 245 | -9/Materials | Reached level 2 276 | -9/Materials | Upgraded with Propulsion slot (x1) 280 | -9/Materials | Upgraded with Propulsion slot (x1) 327 | -9/Materials | Reached level 3 339 | -9/Materials | Upgraded with Propulsion slot (x1) 344 | -9/Materials | Identified exit to Mines 461 | -9/Materials | Discovered new exit (range 15) 472 | -9/Materials | Identified exit to Materials 476 | -9/Materials | Upgraded with Weapon slot (x1) 528 | -9/Materials | Reached level 4 531 | -9/Materials | Upgraded with Utility slot (x2) 555 | -9/Materials | Core integrity fell below 50% 657 | -9/Materials | Core integrity fell below 20% 658 | -9/Materials | Entered Mines 680 | -9/Mines | Reached level 5 701 | -9/Mines | Received a Rocket Launcher from a helpful Derelict 736 | -9/Mines | Reached level 6 747 | -9/Mines | Learned Materials emergency access door positions 759 | -9/Mines | Upgraded with Utility slot (x2) 770 | -9/Mines | Build established: Hacker-Sprinter 800 | -9/Mines | Destroyed by Y-45 Defender with Heavy Assault Rifle Last Messages --------------- 00730_ Plasma Injector explodes. 00730_ G-34 Mercenary destroyed. 00733_ Acquired 3 matter. 00736_ S-10 Pest destroyed. 00736_ Reached level 6. 00736_ S-10 Pest destroyed. 00740_ Acquired 4 matter. 00741_ Acquired 18 matter. 00744_ Acquired 2 matter. 00745_ Acquired 4 matter. 00747_ Acquired derelict log, extracted data. Data stored: Materials emergency access points. 00759_ Upgraded: Utility Slot (+2) 00759_ Upgraded: Sensor Range (+4) 00759_ Upgraded: Melee Accuracy (+5) 00763_ K-01 Serf collects debris. 00780_ Machine disabled. 00782_ Critical hit (Burn: +37). 00784_ Y-45 Defender destroyed. 00796_ The unstable cave ceiling collapses. Map ----- +----------------------------------------------------+ | ?????## """ ## | | ?????# """ ## | | ?????# ### | | ?????## # ###?# | | ??????#### ###???# | | ?????????# #?????##""" ## | | ?????????# #??????##### [* ##? | | ?????????# #??????????## = #?? | | ????????## ####????????# [ ##?? | | ???????## ##???????# [ = #??? | | ??????## ##??????# ##??? | | ??????# #####??# ##???? | | ??????# ### ##?# ###????? | | ??????##??## #### #????? | | ??????????## ? ### ## | | ??????????# | | ??????????# ## ##### | | ??????????## #### ##???? | | ????######### ##??# #?????# | | ???## ####???# ###????# | | ???# ]] ###????# #?????##### | | ???# !| ##???# #????????# | | ???# ##??## #???????# | | ???# ##??# ######## | | ???# % #??# | | ???# Y@ #??# """ | | ???# ############ """ | | ???## """ | | ???# ######### ### | | ???###### ####???????# #?? # | | ?????##?#######??????????# #?? # # | | ?????????????????????????# #?? # # | | ?????????????????????????# #?? #? # | | ?????????????????????????# #?? #? # | | ?????????????????????????# #???#??# | | ?????????????????????????# ??????? | | ??????????????????????????##??????? | | ??????????????????????????????????? | | ??????????????????????????????????? | | ??????????????????????????????????? | | ??????????????????????????????????? | | ??????????????????????????????????? | | ??????????????????????????????????? | | ??????????????????????????????????? | | ??????????????????????????????????? | | ??????????????????????????????????? | | ??????????????????????????????????? | | ??????????????????????????????????? | | ??????????????????????????????????? | | ??????????????????????????????????? | +----------------------------------------------------+ Best States ------------- Heat Dissipation 31 Energy Generation 12 Energy Capacity 265 Matter Stores 300 Matter Capacity 300 Sight Range 16 Robot Scan Range 18 Terrain Scan Density 10 Evasion (%) 64 Offensive Hacking 20 Defensive Hacking 10 Item Schematics ----------------- Hammer | -10/Materials | Hacked Mining Claw | -10/Materials | Hacked Flail | -9/Materials | Hacked Maul | -9/Materials | Hacked Robot Schematics ------------------ None Fabricated ------------ Nothing Alien Tech Used ----------------- None Achievements -------------- None Challenges ------------ None RPGLIKE | -11 -10 -9 -9 --------- Run | Yrd Mat Mat Min Levels Raised 5 | . . 3 2 XP Earned 10777 | 3000 1325 3995 2457 XP Spent 10425 | . 2800 4700 2925 Upgrades 21 | . 7 9 5 Propulsion Slot 3 | . . 3 . Utility Slot 4 | . . 2 2 Weapon Slot 1 | . . 1 . Heat Dissipation 1 | . . 1 . Mass Support 1 | . 1 . . Inventory Capacity 1 | . . 1 . Sensor Range 2 | . . . 2 Melee Accuracy 2 | . . 1 1 Hack Attack % 4 | . 4 . . Hack Defense % 2 | . 2 . . Protomatter Created 116 | . 36 47 33 Integrity Restored 181 | . 48 94 39 Core 165 | . 48 78 39 Parts 16 | . . 16 . Protomatter Decayed 15 | . . 15 . Game ------ Seed RemoteUtilityRedirector Manual? 0 Play Time 00:26:06 Cumulative 160.3 hours Start 2024.08.05 @ 21:35:46 End 2024.08.05 @ 22:24:31 Sessions 1 Manual Loads 0 Difficulty Rogue Special Mode Winter2019/RPGLIKE Game No. 166 Rogue 166 Adventurer 0 Explorer 0 Win Type - Total 13 Types 11/0/0/1/0/0/1/0/0 Lore% 65 Gallery% 65 Achievement% 68 Wizard Run 0 Options --------- Layout 1 ASCII 0 Keyboard 0 Movement Numpad Keybinds 0 Fullscreen 1 Font 24/Smallcaps Map View 50x35 Zoom Use 0% Tactical HUD 1 Map Filters NONE Filters NONE Steam 1 RUN: 7c9591ca-1055-47c6-81a8-f0daf844a194